fUST/lending_fUST_20251117
["ID","MTS","AMOUNT","RATE_DAILY","PERIOD"]
[394188005,1763364641124,-500.0,0.00018836,2]
[394188006,1763364641134,-160.0,0.00018867,2]
[394188007,1763364641143,-302.54622906,0.000189,2]
[394188008,1763364641153,-302.51602579,0.000189,2]
[394188009,1763364641163,-811.0,0.00018946,2]
[394188010,1763364641172,-301.0,0.00018946,2]
[394188011,1763364641181,-420.0,0.00018946,2]
[394188012,1763364641191,-420.0,0.00018946,2]
[394188013,1763364641200,-1680.0,0.00019039,2]
[394188014,1763364641210,-1500.0,0.00019068,2]
[394188015,1763364641219,-1016.64132678,0.00019068,2]
[394188016,1763364641228,-453.7438354,0.00019089,2]
[394188017,1763364641237,-500.0,0.0001911,2]
[394188018,1763364641247,-2000.0,0.00019116,2]
[394188019,1763364641256,-177.0,0.00019227,2]
[394188020,1763364641266,-500.0,0.00019384,2]
[394188021,1763364641275,-260.0,0.00019415,2]
[394188022,1763364641285,-2000.0,0.00019616,2]
[394188023,1763364641294,-500.0,0.00019658,2]
[394188024,1763364641304,-2500.0,0.00019664,2]
[394188025,1763364641313,-720.0,0.00019707,2]
[394188026,1763364641323,-500.0,0.00019932,2]
[394188027,1763364641332,-480.02152452,0.00019944,2]
[394188028,1763364641342,-360.0,0.00019963,2]
[394188029,1763364641351,-1152.0,0.0002,2]
[394188030,1763364641360,-2963.6142836,0.0002,20]
[394188031,1763364641369,-2000.0,0.0002,7]
[394188032,1763364641379,-1931.38695596,0.00020164,2]
[394188033,1763364641388,-500.0,0.00020206,2]
[394188034,1763364641397,-3000.0,0.00020212,2]
[394188035,1763364641406,-500.0,0.0002048,2]
[394188036,1763364641415,-460.0,0.00020511,2]
[394188037,1763364641424,-587.0,0.00020686,2]
[394188038,1763364641433,-402.0,0.00020686,2]
[394188039,1763364641443,-500.0,0.00020754,2]
[394188040,1763364641452,-1430.52966827,0.0002076,2]
[394188041,1763364641462,-1301.0,0.0002089,2]
[394188042,1763364641471,-500.0,0.00021028,2]
[394188043,1763364641479,-560.0,0.00021058,2]
[394188044,1763364641489,-204.0,0.00021227,2]
[394188045,1763364641498,-500.0,0.00021302,2]
[394188046,1763364641507,-500.0,0.00021576,2]
[394188047,1763364641516,-660.0,0.00021606,2]
[394188048,1763364641526,-864.0,0.00021678,20]
[394188049,1763364641535,-395.03358643,0.0002185,2]
[394188050,1763364641544,-500.0,0.00021917,2]
[394188051,1763364641554,-11611.38,0.00022,7]
[394188052,1763364641563,-400.67432439,0.00022,7]
[394188053,1763364641572,-251.65,0.00022,7]
[394188054,1763364641582,-760.0,0.00022154,2]
[394188055,1763364641591,-480.02152452,0.0002229,2]
[394188056,1763364641602,-823.0,0.00022586,2]
[394188057,1763364641611,-860.0,0.00022702,2]
[394188058,1763364641620,-500.0,0.00023013,2]
[394188059,1763364641630,-231.0,0.00023227,2]
[394188060,1763364641639,-960.0,0.0002325,2]
[394188061,1763364641649,-1060.0,0.00023798,2]
[394188062,1763364641658,-1000.0,0.00023845,20]
[394188063,1763364641667,-265.65,0.000239,14]
[394188064,1763364641675,-12962.04999538,0.000241,2]
[394188065,1763364641685,-500.0,0.00024109,2]
[394188066,1763364641697,-337376.32391761,0.00024142,2]
[394188067,1763364641707,-151.0,0.000242,6]
[394188068,1763364641716,-863.32266703,0.00024346,2]
[394188069,1763364641725,-480.02152452,0.00024635,2]
[394188070,1763364641735,-116762.72740375,0.0002465,2]
[394188071,1763364641812,-151.0,0.0002465,7]
[394188072,1763364641821,-151.0,0.0002465,7]
[394188073,1763364641831,-151.0,0.0002465,7]
[394188074,1763364641840,-200.802667,0.0002465,7]
[394188075,1763364641850,-1152.0,0.0002466,2]
[394188076,1763364641859,-500.0,0.00024773,2]
[394188077,1763364641868,-500.0,0.00024773,2]
[394188078,1763364641878,-488.03765742,0.00024773,2]
[394188079,1763364641887,-150.0,0.00024773,2]
[394188080,1763364641896,-500.0,0.00024773,2]
[394188081,1763364641906,-16754.58798679,0.00024774,2]
[394188082,1763364641914,-151.0,0.000248,7]
[394188083,1763364641920,-157.559401,0.000248,7]
[394188084,1763364641929,-500.0,0.00024873,2]
[394188085,1763364641939,-500.0,0.00024873,2]
[394188086,1763364641948,-500.0,0.00024873,2]
[394188087,1763364641958,-505.03306875,0.00024873,2]
[394188088,1763364641968,-500.4503771,0.00024873,2]
[394188089,1763364641977,-501.3914242,0.00024873,2]
[394188090,1763364641986,-151.0,0.000249,7]
[394188091,1763364641995,-483.010201,0.000249,7]
[394188092,1763364642004,-483.010201,0.000249,7]
[394188093,1763364642014,-483.010201,0.000249,7]
[394188094,1763364642023,-483.010201,0.000249,7]
[394188095,1763364642032,-151.0,0.000249,7]
[394188096,1763364642041,-151.0,0.000249,7]
[394188097,1763364642050,-157.673838,0.000249,7]
[394188098,1763364642059,-151.0,0.000249,7]
[394188099,1763364642068,-151.0,0.000249,7]
[394188100,1763364642077,-2083.224997,0.000249,7]
[394188101,1763364642086,-2083.224997,0.000249,7]
[394188102,1763364642095,-2083.224997,0.000249,7]
[394188103,1763364642104,-2083.224997,0.000249,7]
[394188104,1763364642113,-299.77192,0.000249,7]
[394188105,1763364642122,-299.77192,0.000249,7]
[394188106,1763364642132,-299.77192,0.000249,7]
[394188107,1763364642141,-299.77192,0.000249,7]
[394188108,1763364642150,-151.0,0.000249,2]
[394188109,1763364642159,-151.0,0.000249,2]
[394188110,1763364642167,-151.0,0.000249,2]
[394188111,1763364642177,-152.278821,0.000249,7]
[394188112,1763364642186,-152.278821,0.000249,7]
[394188113,1763364642195,-152.278821,0.000249,7]
[394188114,1763364642205,-152.278821,0.000249,7]
[394188115,1763364642214,-229.347791,0.000249,7]
[394188116,1763364642223,-229.347791,0.000249,7]
[394188117,1763364642233,-229.347791,0.000249,7]
[394188118,1763364642242,-229.347791,0.000249,7]
[394188119,1763364642252,-151.0,0.000249,7]
[394188120,1763364642262,-630157.33265,0.000249,2]
[394188121,1763364642271,-151.0,0.000249,7]
[394188122,1763364642280,-151.0,0.000249,7]
[394188123,1763364642290,-151.0,0.000249,7]
[394188124,1763364642299,-151.0,0.000249,7]
[394188125,1763364642308,-2000.0,0.00025,7]
[394188126,1763364642318,-24794.1428455,0.00025109,2]
[394188127,1763364642327,-500.0,0.00025205,2]
[394188128,1763364642336,-258.0,0.00025227,2]
[394188129,1763364642346,-274.0948081,0.00025321,2]
[394188130,1763364642355,-501.53166973,0.00025321,2]
[394188131,1763364642365,-300.0,0.00025321,2]
[394188132,1763364642374,-1000.0,0.00025321,2]
[394188133,1763364642384,-1001.47190717,0.00025421,2]
[394188134,1763364642393,-502.92139257,0.00025421,2]
[394188135,1763364642402,-450.0,0.00025868,2]
[394188136,1763364642412,-1004.37558909,0.00025868,2]
[394188137,1763364642421,-1000.0,0.0002623,30]
[394188138,1763364642431,-244.0,0.0002623,30]
[394188139,1763364642440,-251.65,0.000263,7]
[394188140,1763364642450,-500.0,0.00026301,2]
[394188141,1763364642460,-600.0,0.00026416,2]
[394188142,1763364642469,-155.859905,0.0002659,2]
[394188143,1763364642478,-11611.38,0.000266,7]
[394188144,1763364642487,-335.0,0.00026925,2]
[394188145,1763364642498,-450.63260107,0.00026964,2]
[394188146,1763364642507,-480.02152452,0.0002698,2]
[394188147,1763364642516,-285.0,0.00027227,2]
[394188148,1763364642525,-500.0,0.00027373,2]
[394188149,1763364642535,-500.0,0.00027397,2]
[394188150,1763364642544,-151.0,0.00027397,7]
[394188151,1763364642553,-151.0,0.00027397,7]
[394188154,1763364642563,-151.0,0.00027397,7]
[394188156,1763364642572,-151.0,0.00027397,7]
[394188157,1763364642582,-151.0,0.00027397,7]
[394188158,1763364642592,-151.0,0.00027397,7]
[394188159,1763364642601,-151.0,0.00027397,7]
[394188160,1763364642610,-171.22792,0.00027397,7]
[394188161,1763364642620,-151.0,0.00027397,7]
[394188162,1763364642632,-151.0,0.00027397,7]
[394188163,1763364642642,-151.0,0.00027397,7]
[394188164,1763364642652,-151.0,0.00027397,7]
[394188165,1763364642662,-151.0,0.00027397,7]
[394188166,1763364642671,-151.0,0.00027397,7]
[394188167,1763364642680,-151.0,0.00027397,7]
[394188168,1763364642689,-151.0,0.00027397,7]
[394188169,1763364642703,-151.0,0.00027397,7]
[394188170,1763364642712,-195.016919,0.00027397,7]
[394188171,1763364642722,-341.668292,0.00027397,7]
[394188172,1763364642734,-341.668292,0.00027397,7]
[394188173,1763364642744,-151.0,0.00027397,7]
[394188174,1763364642754,-341.668292,0.00027397,7]
[394188175,1763364642763,-151.0,0.00027397,7]
[394188176,1763364642774,-341.668292,0.00027397,7]
[394188177,1763364642783,-221.710928,0.00027397,7]
[394188178,1763364642794,-221.710928,0.00027397,7]
[394188179,1763364642804,-221.710928,0.00027397,7]
[394188180,1763364642813,-221.710928,0.00027397,7]
[394188181,1763364642822,-151.0,0.00027397,7]
[394188182,1763364642831,-151.0,0.00027397,7]
[394188183,1763364642840,-151.0,0.00027397,7]
[394188184,1763364642850,-151.0,0.00027397,7]
[394188185,1763364642859,-151.0,0.00027397,7]
[394188186,1763364642869,-151.0,0.00027397,7]
[394188187,1763364642878,-151.0,0.00027397,7]
[394188188,1763364642887,-151.0,0.00027397,7]
[394188189,1763364642896,-938.774569,0.00027397,7]
[394188190,1763364642905,-938.774569,0.00027397,7]
[394188191,1763364642914,-323.793845,0.00027397,7]
[394188192,1763364642923,-938.774569,0.00027397,7]
[394188193,1763364642933,-265.425309,0.00027397,7]
[394188194,1763364642941,-323.793845,0.00027397,7]
[394188195,1763364642950,-938.774569,0.00027397,7]
[394188196,1763364642959,-265.425309,0.00027397,7]
[394188197,1763364642969,-323.793845,0.00027397,7]
[394188198,1763364643043,-323.793845,0.00027397,7]
[394188199,1763364643052,-265.425309,0.00027397,7]
[394188200,1763364643061,-265.425309,0.00027397,7]
[394188201,1763364643070,-151.0,0.00027397,7]
[394188202,1763364643080,-167.502976,0.00027397,7]
[394188203,1763364643089,-151.0,0.00027397,7]
[394188204,1763364643099,-163.563873,0.00027397,7]
[394188205,1763364643108,-151.0,0.00027397,7]
[394188206,1763364643118,-151.0,0.00027397,7]
[394188207,1763364643127,-151.0,0.00027397,7]
[394188208,1763364643137,-151.0,0.00027397,7]
[394188209,1763364643146,-204.122084,0.00027397,7]
[394188210,1763364643155,-204.122084,0.00027397,7]
[394188211,1763364643164,-204.122084,0.00027397,7]
[394188212,1763364643174,-204.122084,0.00027397,7]
[394188213,1763364643183,-224.269866,0.00027397,7]
[394188214,1763364643192,-151.0,0.00027397,7]
[394188215,1763364643201,-151.0,0.00027397,7]
[394188216,1763364643211,-151.0,0.00027397,7]
[394188217,1763364643220,-151.0,0.00027397,7]
[394188218,1763364643229,-439.391154,0.00027397,7]
[394188219,1763364643239,-439.391154,0.00027397,7]
[394188220,1763364643249,-439.391154,0.00027397,7]
[394188221,1763364643258,-439.391154,0.00027397,7]
[394188222,1763364643267,-347.148306,0.00027397,7]
[394188223,1763364643277,-347.148306,0.00027397,7]
[394188224,1763364643286,-162.890195,0.00027397,7]
[394188225,1763364643296,-347.148306,0.00027397,7]
[394188226,1763364643305,-151.0,0.00027397,7]
[394188227,1763364643314,-162.890195,0.00027397,7]
[394188228,1763364643324,-347.148306,0.00027397,7]
[394188229,1763364643333,-151.0,0.00027397,7]
[394188230,1763364643342,-162.890195,0.00027397,7]
[394188231,1763364643351,-162.890195,0.00027397,7]
[394188232,1763364643359,-151.0,0.00027397,7]
[394188233,1763364643368,-151.0,0.00027397,7]
[394188234,1763364643376,-163.939451,0.00027397,7]
[394188235,1763364643385,-151.0,0.00027397,7]
[394188236,1763364643394,-163.939451,0.00027397,7]
[394188237,1763364643403,-151.0,0.00027397,7]
[394188238,1763364643412,-163.939451,0.00027397,7]
[394188239,1763364643422,-151.0,0.00027397,7]
[394188240,1763364643431,-151.0,0.00027397,7]
[394188241,1763364643440,-151.0,0.00027397,7]
[394188242,1763364643450,-151.0,0.00027397,7]
[394188243,1763364643460,-189.116034,0.00027397,7]
[394188244,1763364643469,-151.0,0.00027397,7]
[394188245,1763364643478,-151.0,0.00027397,7]
[394188246,1763364643489,-151.0,0.00027397,7]
[394188247,1763364643498,-151.0,0.00027397,7]
[394188248,1763364643508,-151.0,0.00027397,7]
[394188249,1763364643518,-151.0,0.00027397,7]
[394188250,1763364643528,-151.0,0.00027397,7]
[394188251,1763364643537,-151.0,0.00027397,7]
[394188252,1763364643546,-151.0,0.00027397,7]
[394188253,1763364643555,-151.0,0.00027397,7]
[394188254,1763364643564,-151.0,0.00027397,7]
[394188255,1763364643573,-151.0,0.00027397,7]
[394188256,1763364643582,-267.05864,0.00027397,7]
[394188257,1763364643591,-267.05864,0.00027397,7]
[394188258,1763364643600,-267.05864,0.00027397,7]
[394188259,1763364643609,-151.0,0.00027397,7]
[394188260,1763364643619,-267.05864,0.00027397,7]
[394188261,1763364643627,-151.0,0.00027397,7]
[394188262,1763364643636,-151.0,0.00027397,7]
[394188263,1763364643645,-151.0,0.00027397,7]
[394188265,1763364643654,-151.0,0.00027397,7]
[394188267,1763364643663,-151.0,0.00027397,7]
[394188268,1763364643673,-151.0,0.00027397,7]
[394188269,1763364643682,-151.0,0.00027397,7]
[394188270,1763364643692,-151.0,0.00027397,7]
[394188271,1763364643704,-151.0,0.00027397,7]
[394188272,1763364643713,-151.0,0.00027397,7]
[394188273,1763364643722,-151.0,0.00027397,7]
[394188274,1763364643731,-151.0,0.00027397,7]
[394188275,1763364643742,-151.0,0.00027397,7]
[394188276,1763364643752,-151.0,0.00027397,7]
[394188277,1763364643761,-151.0,0.00027397,7]
[394188278,1763364643771,-151.0,0.00027397,7]
[394188279,1763364643780,-151.0,0.00027397,7]
[394188280,1763364643788,-151.0,0.00027397,7]
[394188281,1763364643798,-151.0,0.00027397,7]
[394188282,1763364643807,-151.0,0.00027397,7]
[394188283,1763364643816,-151.0,0.00027397,7]
[394188284,1763364643826,-151.0,0.00027397,7]
[394188285,1763364643835,-151.0,0.00027397,7]
[394188286,1763364643844,-151.0,0.00027397,7]
[394188287,1763364643854,-151.0,0.00027397,7]
[394188288,1763364643864,-151.0,0.00027397,7]
[394188289,1763364643873,-286.118227,0.00027397,7]
[394188290,1763364643882,-151.0,0.00027397,7]
[394188291,1763364643892,-151.0,0.00027397,7]
[394188292,1763364643901,-151.0,0.00027397,7]
[394188293,1763364643909,-151.0,0.00027397,7]
[394188294,1763364643918,-151.0,0.00027397,7]
[394188295,1763364643927,-3353.940487,0.00027397,7]
[394188296,1763364643936,-151.0,0.00027397,7]
[394188297,1763364643945,-3353.940487,0.00027397,7]
[394188298,1763364643953,-151.0,0.00027397,7]
[394188299,1763364643962,-3353.940487,0.00027397,7]
[394188300,1763364643973,-154.571097,0.00027397,7]
[394188301,1763364643981,-398.280045,0.00027397,7]
[394188302,1763364643990,-384.597059,0.00027397,7]
[394188303,1763364644000,-154.571097,0.00027397,7]
[394188304,1763364644009,-3353.940487,0.00027397,7]
[394188305,1763364644018,-398.280045,0.00027397,7]
[394188306,1763364644027,-384.597059,0.00027397,7]
[394188307,1763364644037,-154.571097,0.00027397,7]
[394188308,1763364644046,-398.280045,0.00027397,7]
[394188309,1763364644055,-384.597059,0.00027397,7]
[394188310,1763364644064,-154.571097,0.00027397,7]
[394188311,1763364644072,-398.280045,0.00027397,7]
[394188312,1763364644081,-384.597059,0.00027397,7]
[394188313,1763364644090,-151.0,0.00027397,7]
[394188314,1763364644154,-151.0,0.00027397,7]
[394188315,1763364644163,-151.0,0.00027397,7]
[394188316,1763364644172,-151.0,0.00027397,7]
[394188317,1763364644181,-235.532092,0.00027397,7]
[394188318,1763364644189,-169.941009,0.00027397,7]
[394188319,1763364644198,-169.941009,0.00027397,7]
[394188320,1763364644208,-169.941009,0.00027397,7]
[394188321,1763364644217,-169.941009,0.00027397,7]
[394188322,1763364644225,-406.403043,0.00027397,7]
[394188323,1763364644234,-406.403043,0.00027397,7]
[394188324,1763364644243,-406.403043,0.00027397,7]
[394188325,1763364644252,-154.008364,0.00027397,7]
[394188326,1763364644261,-406.403043,0.00027397,7]
[394188327,1763364644270,-974.583435,0.00027397,7]
[394188328,1763364644279,-974.583435,0.00027397,7]
[394188329,1763364644288,-974.583435,0.00027397,7]
[394188330,1763364644298,-974.583435,0.00027397,7]
[394188331,1763364644307,-151.0,0.00027397,7]
[394188332,1763364644316,-151.0,0.00027397,2]
[394188333,1763364644326,-151.0,0.00027397,7]
[394188334,1763364644335,-275.690995,0.00027397,2]
[394188335,1763364644344,-974.583435,0.00027397,7]
[394188336,1763364644354,-974.583435,0.00027397,7]
[394188337,1763364644363,-308.938043,0.00027397,7]
[394188338,1763364644372,-151.0,0.00027397,7]
[394188339,1763364644381,-308.938043,0.00027397,7]
[394188340,1763364644390,-151.0,0.00027397,7]
[394188341,1763364644399,-543.89097,0.00027397,7]
[394188342,1763364644408,-974.583435,0.00027397,7]
[394188343,1763364644417,-151.0,0.00027397,7]
[394188344,1763364644426,-543.89097,0.00027397,7]
[394188345,1763364644437,-308.938043,0.00027397,7]
[394188346,1763364644446,-974.583435,0.00027397,7]
[394188347,1763364644456,-151.0,0.00027397,7]
[394188348,1763364644467,-308.938043,0.00027397,7]
[394188349,1763364644477,-10000.0,0.00027397,7]
[394188350,1763364644488,-10000.0,0.00027397,7]
[394188351,1763364644501,-308.938043,0.00027397,7]
[394188352,1763364644510,-543.89097,0.00027397,7]
[394188353,1763364644520,-308.938043,0.00027397,7]
[394188354,1763364644530,-10000.0,0.00027397,7]
[394188355,1763364644539,-543.89097,0.00027397,7]
[394188356,1763364644549,-10000.0,0.00027397,7]
[394188357,1763364644558,-308.938043,0.00027397,7]
[394188358,1763364644568,-308.938043,0.00027397,7]
[394188359,1763364644577,-10000.0,0.00027397,7]
[394188360,1763364644587,-543.89097,0.00027397,7]
[394188361,1763364644596,-10000.0,0.00027397,7]
[394188362,1763364644606,-543.89097,0.00027397,7]
[394188363,1763364644615,-10000.0,0.00027397,7]
[394188364,1763364644625,-543.89097,0.00027397,7]
[394188365,1763364644635,-10000.0,0.00027397,7]
[394188366,1763364644645,-170.76959,0.00027397,7]
[394188367,1763364644663,-332.898062,0.00027397,7]
[394188368,1763364644680,-543.89097,0.00027397,7]
[394188369,1763364644697,-332.898062,0.00027397,7]
[394188370,1763364644713,-170.76959,0.00027397,7]
[394188371,1763364644729,-10000.0,0.00027397,7]
[394188372,1763364644748,-10000.0,0.00027397,7]
[394188373,1763364644765,-170.76959,0.00027397,7]
[394188374,1763364644780,-332.898062,0.00027397,7]
[394188375,1763364644795,-170.76959,0.00027397,7]
[394188376,1763364644813,-332.898062,0.00027397,7]
[394188377,1763364644825,-10000.0,0.00027397,7]
[394188378,1763364644838,-10000.0,0.00027397,7]
[394188379,1763364644853,-332.898062,0.00027397,7]
[394188380,1763364644868,-170.76959,0.00027397,7]
[394188381,1763364644885,-332.898062,0.00027397,7]
[394188382,1763364644902,-170.76959,0.00027397,7]
[394188383,1763364644913,-332.898062,0.00027397,7]
[394188384,1763364644927,-170.76959,0.00027397,7]
[394188385,1763364644942,-332.898062,0.00027397,7]
[394188386,1763364644954,-170.76959,0.00027397,7]
[394188387,1763364644967,-314.793543,0.00027397,7]
[394188388,1763364644980,-314.793543,0.00027397,7]
[394188389,1763364644992,-314.793543,0.00027397,7]
[394188390,1763364645006,-314.793543,0.00027397,7]
[394188391,1763364645020,-151.0,0.00027397,7]
[394188392,1763364645032,-151.0,0.00027397,7]
[394188393,1763364645046,-314.793543,0.00027397,7]
[394188394,1763364645059,-314.793543,0.00027397,7]
[394188395,1763364645072,-151.0,0.00027397,7]
[394188396,1763364645084,-151.0,0.00027397,7]
[394188397,1763364645097,-314.793543,0.00027397,7]
[394188398,1763364645110,-314.793543,0.00027397,7]
[394188399,1763364645124,-151.0,0.00027397,7]
[394188400,1763364645144,-151.0,0.00027397,7]
[394188401,1763364645157,-352.420446,0.00027397,7]
[394188402,1763364645169,-352.420446,0.00027397,7]
[394188403,1763364645182,-352.420446,0.00027397,7]
[394188404,1763364645196,-352.420446,0.00027397,7]
[394188405,1763364645208,-151.0,0.00027397,7]
[394188406,1763364645220,-151.0,0.00027397,7]
[394188407,1763364645233,-352.420446,0.00027397,7]
[394188408,1763364645246,-160.996517,0.00027397,7]
[394188409,1763364645258,-352.420446,0.00027397,7]
[394188410,1763364645271,-352.420446,0.00027397,7]
[394188411,1763364645283,-352.420446,0.00027397,7]
[394188412,1763364645297,-151.0,0.00027397,7]
[394188413,1763364645310,-151.0,0.00027397,7]
[394188414,1763364645322,-239.199494,0.00027397,7]
[394188415,1763364645335,-239.199494,0.00027397,7]
[394188416,1763364645347,-239.199494,0.00027397,7]
[394188417,1763364645356,-239.199494,0.00027397,7]
[394188418,1763364645366,-239.199494,0.00027397,7]
[394188419,1763364645474,-239.199494,0.00027397,7]
[394188420,1763364645487,-239.199494,0.00027397,7]
[394188421,1763364645497,-239.199494,0.00027397,7]
[394188422,1763364645507,-233.554442,0.00027397,7]
[394188423,1763364645516,-233.554442,0.00027397,7]
[394188424,1763364645525,-233.554442,0.00027397,7]
[394188425,1763364645534,-233.554442,0.00027397,7]
[394188426,1763364645543,-233.554442,0.00027397,7]
[394188427,1763364645552,-233.554442,0.00027397,7]
[394188428,1763364645561,-233.554442,0.00027397,7]
[394188429,1763364645569,-233.554442,0.00027397,7]
[394188430,1763364645578,-270.281418,0.00027397,7]
[394188431,1763364645588,-270.281418,0.00027397,7]
[394188433,1763364645597,-270.281418,0.00027397,7]
[394188434,1763364645607,-270.281418,0.00027397,7]
[394188435,1763364645616,-270.281418,0.00027397,7]
[394188436,1763364645625,-270.281418,0.00027397,7]
[394188437,1763364645634,-151.0,0.00027397,7]
[394188438,1763364645644,-151.0,0.00027397,7]
[394188439,1763364645653,-270.281418,0.00027397,7]
[394188440,1763364645663,-270.281418,0.00027397,7]
[394188441,1763364645672,-151.0,0.00027397,7]
[394188442,1763364645682,-151.0,0.00027397,7]
[394188443,1763364645693,-151.0,0.00027397,7]
[394188444,1763364645703,-255.975559,0.00027397,7]
[394188445,1763364645713,-151.0,0.00027397,7]
[394188446,1763364645722,-151.0,0.00027397,7]
[394188447,1763364645731,-151.0,0.00027397,7]
[394188448,1763364645741,-151.0,0.00027397,7]
[394188449,1763364645750,-151.0,0.00027397,7]
[394188450,1763364645759,-151.0,0.00027397,7]
[394188451,1763364645767,-151.0,0.00027397,7]
[394188453,1763364645778,-151.0,0.00027397,7]
[394188454,1763364645786,-151.0,0.00027397,7]
[394188456,1763364645795,-243.621417,0.00027397,7]
[394188457,1763364645804,-320.156538,0.00027397,7]
[394188459,1763364645812,-320.156538,0.00027397,7]
[394188460,1763364645821,-320.156538,0.00027397,7]
[394188462,1763364645830,-320.156538,0.00027397,7]
[394188463,1763364645838,-3066.810049,0.00027397,7]
[394188465,1763364645847,-320.156538,0.00027397,7]
[394188466,1763364645856,-3066.810049,0.00027397,7]
[394188467,1763364645864,-320.156538,0.00027397,7]
[394188468,1763364645873,-3066.810049,0.00027397,7]
[394188469,1763364645882,-320.156538,0.00027397,7]
[394188470,1763364645891,-3066.810049,0.00027397,7]
[394188471,1763364645899,-320.156538,0.00027397,7]
[394188472,1763364645909,-3066.810049,0.00027397,7]
[394188473,1763364645918,-3066.810049,0.00027397,7]
[394188474,1763364645928,-395.436153,0.00027397,7]
[394188475,1763364645937,-395.436153,0.00027397,7]
[394188476,1763364645946,-395.436153,0.00027397,7]
[394188477,1763364645954,-3066.810049,0.00027397,7]
[394188478,1763364645963,-3066.810049,0.00027397,7]
[394188479,1763364645972,-151.0,0.00027397,7]
[394188480,1763364645980,-395.436153,0.00027397,7]
[394188481,1763364645990,-151.0,0.00027397,7]
[394188482,1763364645999,-395.436153,0.00027397,7]
[394188483,1763364646008,-151.0,0.00027397,7]
[394188484,1763364646016,-395.436153,0.00027397,7]
[394188485,1763364646025,-151.0,0.00027397,7]
[394188486,1763364646034,-395.436153,0.00027397,7]
[394188487,1763364646043,-151.0,0.00027397,7]
[394188488,1763364646051,-395.436153,0.00027397,7]
[394188489,1763364646060,-395.436153,0.00027397,7]
[394188490,1763364646069,-395.436153,0.00027397,7]
[394188491,1763364646078,-395.436153,0.00027397,7]
[394188492,1763364646088,-395.436153,0.00027397,7]
[394188493,1763364646097,-535.97476,0.00027397,7]
[394188494,1763364646107,-535.97476,0.00027397,7]
[394188495,1763364646116,-535.97476,0.00027397,7]
[394188496,1763364646125,-535.97476,0.00027397,7]
[394188497,1763364646134,-151.0,0.00027397,7]
[394188498,1763364646143,-151.0,0.00027397,7]
[394188499,1763364646152,-535.97476,0.00027397,7]
[394188500,1763364646161,-151.0,0.00027397,7]
[394188501,1763364646169,-535.97476,0.00027397,7]
[394188502,1763364646178,-151.0,0.00027397,7]
[394188503,1763364646188,-151.0,0.00027397,7]
[394188504,1763364646198,-535.97476,0.00027397,7]
[394188505,1763364646207,-151.0,0.00027397,7]
[394188506,1763364646216,-151.0,0.00027397,7]
[394188507,1763364646225,-151.0,0.00027397,7]
[394188508,1763364646234,-535.97476,0.00027397,7]
[394188509,1763364646243,-151.0,0.00027397,7]
[394188510,1763364646252,-151.0,0.00027397,7]
[394188511,1763364646261,-151.0,0.00027397,7]
[394188512,1763364646270,-151.0,0.00027397,7]
[394188513,1763364646279,-151.0,0.00027397,7]
[394188514,1763364646288,-151.0,0.00027397,7]
[394188515,1763364646298,-151.0,0.00027397,7]